[Event "Titled Tuesday Blitz May 4 2021"]
[White "Pajeken, Jakob Leon"]
[Black "Winslow, Elliott"]
[WhiteFideId "12942839"]
[BlackFideId "2002523"]
[WhiteElo "2024"]
[BlackElo "2236"]
[Result "1-0"]
[Round "05"]
[TimeControl "180+1"]
[Date "2021.05.04"]
[WhiteClock "0:00:53"]
[BlackClock "0:01:22"]

1. e4 {[%clk 0:03:00]}  c5 {[%clk 0:02:59]} 2. Nf3 {[%clk 0:03:00]}  d6 {[%clk 0:02:58]} 3. d4 {[%clk 0:03:00]}  cxd4 {[%clk 0:02:55]} 4. Nxd4 {[%clk 0:03:01]}  Nf6 {[%clk 0:02:55]} 5. Nc3 {[%clk 0:03:01]}  g6 {[%clk 0:02:56]} 6. Be3 {[%clk 0:03:00]}  Bg7 {[%clk 0:02:55]} 7. f3 {[%clk 0:03:00]}  Nc6 {[%clk 0:02:55]} 8. Qd2 {[%clk 0:02:59]}  O-O {[%clk 0:02:55]} 9. g4 {[%clk 0:02:58]}  e6 {[%clk 0:02:45]} 10. O-O-O {[%clk 0:02:49]}  d5 {[%clk 0:02:42]} 11. exd5 {[%clk 0:02:47]}  Nxd5 {[%clk 0:02:41]} 12. Nxd5 {[%clk 0:02:46]}  exd5 {[%clk 0:02:40]} 13. Nxc6 {[%clk 0:02:36]}  bxc6 {[%clk 0:02:40]} 14. Bd4 {[%clk 0:02:36]}  Bxd4 {[%clk 0:02:35]} 15. Qxd4 {[%clk 0:02:34]}  Qb6 {[%clk 0:02:35]} 16. Be2 {[%clk 0:02:19]}  Rb8 {[%clk 0:02:32]} 17. Rhe1 {[%clk 0:02:17]}  c5 {[%clk 0:02:31]} 18. Qc3 {[%clk 0:02:13]}  Be6 {[%clk 0:02:22]} 19. Qa3 {[%clk 0:02:08]}  d4 {[%clk 0:02:18]} 20. f4 {[%clk 0:02:04]}  Qc7 {[%clk 0:02:17]} 21. f5 {[%clk 0:02:02]}  Qf4+ {[%clk 0:02:16]} 22. Kb1 {[%clk 0:02:01]}  gxf5 {[%clk 0:02:14]} 23. Rf1 {[%clk 0:02:01]}  Qe5 {[%clk 0:02:11]} 24. Rde1 {[%clk 0:01:51]}  f4 {[%clk 0:01:55]} 25. Bc4 {[%clk 0:01:39]}  Qd6 {[%clk 0:01:55]} 26. Qd3 {[%clk 0:01:22]}  Bxc4 {[%clk 0:01:48]} 27. Qxc4 {[%clk 0:01:21]}  Rb4 {[%clk 0:01:46]} 28. Qd3 {[%clk 0:01:19]}  c4 {[%clk 0:01:42]} 29. Qf5 {[%clk 0:01:18]}  Rfb8 {[%clk 0:01:37]} 30. b3 {[%clk 0:01:17]}  d3 {[%clk 0:01:37]} 31. Rxf4 {[%clk 0:01:06]}  dxc2+ {[%clk 0:01:34]} 32. Kb2 {[%clk 0:01:04]}  Rxb3+ {[%clk 0:01:30]} 33. axb3 {[%clk 0:01:03]}  Rxb3+ {[%clk 0:01:29]} 34. Kxc2 {[%clk 0:00:59]}  Qb4 {[%clk 0:01:22]} 35. Re8+ {[%clk 0:00:53]} 1-0


[Site "https://www.chess.com"]

[Event "Titled Tuesday Blitz May 4 2021"]
[White "Palchuk, Andrii"]
[Black "Jumabayev, Rinat"]
[WhiteFideId "14176688"]
[BlackFideId "13702661"]
[WhiteElo "2184"]
[BlackElo "2535"]
[Result "0-1"]
[Round "05"]
[TimeControl "180+1"]
[Date "2021.05.04"]
[WhiteClock "0:00:04"]
[BlackClock "0:00:13"]

1. d4 {[%clk 0:03:00]}  Nf6 {[%clk 0:02:58]} 2. c4 {[%clk 0:03:00]}  e6 {[%clk 0:02:58]} 3. Nf3 {[%clk 0:02:59]}  Bb4+ {[%clk 0:02:58]} 4. Nbd2 {[%clk 0:02:57]}  O-O {[%clk 0:02:57]} 5. g3 {[%clk 0:02:58]}  d5 {[%clk 0:02:52]} 6. Bg2 {[%clk 0:02:58]}  dxc4 {[%clk 0:02:49]} 7. O-O {[%clk 0:02:55]}  b5 {[%clk 0:02:49]} 8. Ne5 {[%clk 0:02:48]}  Nd5 {[%clk 0:02:47]} 9. a3 {[%clk 0:02:40]}  Ba5 {[%clk 0:02:35]} 10. Ne4 {[%clk 0:02:17]}  Bb6 {[%clk 0:02:33]} 11. e3 {[%clk 0:02:08]}  a5 {[%clk 0:02:19]} 12. b3 {[%clk 0:01:54]}  cxb3 {[%clk 0:02:16]} 13. Qxb3 {[%clk 0:01:53]}  a4 {[%clk 0:02:14]} 14. Qb2 {[%clk 0:01:49]}  f6 {[%clk 0:02:00]} 15. Nf3 {[%clk 0:01:42]}  Qe8 {[%clk 0:01:55]} 16. Bd2 {[%clk 0:01:29]}  Nc6 {[%clk 0:01:41]} 17. Rfc1 {[%clk 0:01:14]}  Na5 {[%clk 0:01:37]} 18. Bxa5 {[%clk 0:01:13]}  Rxa5 {[%clk 0:01:38]} 19. Nfd2 {[%clk 0:00:53]}  Kh8 {[%clk 0:01:36]} 20. Nc5 {[%clk 0:00:51]}  Qe7 {[%clk 0:01:32]} 21. Rab1 {[%clk 0:00:45]}  Qf7 {[%clk 0:01:23]} 22. Qc2 {[%clk 0:00:26]}  Rd8 {[%clk 0:01:21]} 23. Nde4 {[%clk 0:00:17]}  h6 {[%clk 0:01:18]} 24. h4 {[%clk 0:00:17]}  e5 {[%clk 0:01:17]} 25. dxe5 {[%clk 0:00:17]}  fxe5 {[%clk 0:01:18]} 26. Nd3 {[%clk 0:00:16]}  Qe7 {[%clk 0:01:17]} 27. Qb2 {[%clk 0:00:16]}  Nxe3 {[%clk 0:01:16]} 28. Nxe5 {[%clk 0:00:16]}  Bf5 {[%clk 0:01:08]} 29. Nc6 {[%clk 0:00:14]}  Qe8 {[%clk 0:01:00]} 30. Nxd8 {[%clk 0:00:14]}  Nxg2 {[%clk 0:01:00]} 31. Qe5 {[%clk 0:00:11]}  Qxe5 {[%clk 0:00:53]} 32. Nf7+ {[%clk 0:00:12]}  Kg8 {[%clk 0:00:53]} 33. Nxe5 {[%clk 0:00:13]}  Bxe4 {[%clk 0:00:53]} 34. Rb4 {[%clk 0:00:13]}  Bb7 {[%clk 0:00:50]} 35. Nc6 {[%clk 0:00:12]}  Bxc6 {[%clk 0:00:50]} 36. Rxc6 {[%clk 0:00:12]}  Ne1 {[%clk 0:00:51]} 37. Re4 {[%clk 0:00:09]}  Nd3 {[%clk 0:00:41]} 38. Re7 {[%clk 0:00:09]}  Ra7 {[%clk 0:00:26]} 39. Rxb6 {[%clk 0:00:08]}  Kf8 {[%clk 0:00:23]} 40. Rd7 {[%clk 0:00:08]}  cxb6 {[%clk 0:00:15]} 41. Rxa7 {[%clk 0:00:09]}  Ne5 {[%clk 0:00:16]} 42. Ra8+ {[%clk 0:00:03]}  Ke7 {[%clk 0:00:15]} 43. Rg8 {[%clk 0:00:03]}  Kf7 {[%clk 0:00:11]} 44. Rb8 {[%clk 0:00:02]}  Nc4 {[%clk 0:00:11]} 45. Rb7+ {[%clk 0:00:02]}  Kf6 {[%clk 0:00:12]} 46. Kg2 {[%clk 0:00:03]}  g6 {[%clk 0:00:12]} 47. Kf3 {[%clk 0:00:03]}  Kf5 {[%clk 0:00:12]} 48. g4+ {[%clk 0:00:03]}  Ke5 {[%clk 0:00:12]} 49. Kg3 {[%clk 0:00:04]}  Kd4 {[%clk 0:00:11]} 50. f4 {[%clk 0:00:05]}  Nxa3 {[%clk 0:00:11]} 51. f5 {[%clk 0:00:05]}  gxf5 {[%clk 0:00:11]} 52. gxf5 {[%clk 0:00:06]}  Nc4 {[%clk 0:00:11]} 53. f6 {[%clk 0:00:06]}  Ne5 {[%clk 0:00:11]} 54. f7 {[%clk 0:00:05]}  Nxf7 {[%clk 0:00:11]} 55. Rxf7 {[%clk 0:00:06]}  a3 {[%clk 0:00:12]} 56. Ra7 {[%clk 0:00:06]}  b4 {[%clk 0:00:12]} 57. Kg4 {[%clk 0:00:07]}  Kc3 {[%clk 0:00:13]} 58. Kh5 {[%clk 0:00:08]}  Kb2 {[%clk 0:00:13]} 59. Kxh6 {[%clk 0:00:08]}  a2 {[%clk 0:00:14]} 60. Kg5 {[%clk 0:00:09]}  a1=Q {[%clk 0:00:14]} 61. Rxa1 {[%clk 0:00:10]}  Kxa1 {[%clk 0:00:15]} 62. h5 {[%clk 0:00:10]}  b3 {[%clk 0:00:15]} 63. h6 {[%clk 0:00:11]}  b2 {[%clk 0:00:16]} 64. h7 {[%clk 0:00:12]}  b1=Q {[%clk 0:00:16]} 65. h8=Q+ {[%clk 0:00:13]}  Qb2 {[%clk 0:00:16]} 66. Qb8 {[%clk 0:00:11]}  Qd4 {[%clk 0:00:14]} 67. Kf5 {[%clk 0:00:10]}  Kb2 {[%clk 0:00:15]} 68. Qa7 {[%clk 0:00:07]}  Kb3 {[%clk 0:00:13]} 69. Ke6 {[%clk 0:00:06]}  Kb4 {[%clk 0:00:11]} 70. Kf5 {[%clk 0:00:03]}  Qc5+ {[%clk 0:00:11]} 71. Kf4 {[%clk 0:00:04]}  b5 {[%clk 0:00:11]} 72. Qa6 {[%clk 0:00:03]}  Qd4+ {[%clk 0:00:11]} 73. Kf3 {[%clk 0:00:04]}  Qd3+ {[%clk 0:00:12]} 74. Kf4 {[%clk 0:00:04]}  Kb3 {[%clk 0:00:12]} 75. Qe6+ {[%clk 0:00:03]}  Qc4+ {[%clk 0:00:12]} 76. Qxc4+ {[%clk 0:00:04]}  Kxc4 {[%clk 0:00:13]} 0-1


[Site "https://www.chess.com"]

[Event "Titled Tuesday Blitz May 4 2021"]
[White "Perez Gormaz, Matias"]
[Black "Navalgund, Niranjan"]
[WhiteFideId "3406342"]
[BlackFideId "5030854"]
[WhiteElo "2414"]
[BlackElo "2290"]
[Result "1-0"]
[Round "05"]
[TimeControl "180+1"]
[Date "2021.05.04"]
[WhiteClock "0:00:09"]
[BlackClock "0:00:10"]

1. e4 {[%clk 0:03:00]}  e5 {[%clk 0:02:59]} 2. Nf3 {[%clk 0:03:00]}  Nc6 {[%clk 0:03:00]} 3. Bc4 {[%clk 0:03:01]}  Nf6 {[%clk 0:02:59]} 4. d3 {[%clk 0:03:01]}  h6 {[%clk 0:02:58]} 5. O-O {[%clk 0:03:01]}  d6 {[%clk 0:02:59]} 6. c3 {[%clk 0:03:02]}  g5 {[%clk 0:02:59]} 7. a4 {[%clk 0:03:01]}  a5 {[%clk 0:02:51]} 8. Nbd2 {[%clk 0:02:59]}  Ne7 {[%clk 0:02:47]} 9. Qb3 {[%clk 0:02:38]}  Bg7 {[%clk 0:02:46]} 10. Bxf7+ {[%clk 0:02:37]}  Kf8 {[%clk 0:02:47]} 11. d4 {[%clk 0:02:27]}  Nc6 {[%clk 0:02:45]} 12. Bg6 {[%clk 0:02:19]}  Qe7 {[%clk 0:02:44]} 13. dxe5 {[%clk 0:02:14]}  Nxe5 {[%clk 0:02:45]} 14. Nxe5 {[%clk 0:02:13]}  dxe5 {[%clk 0:02:45]} 15. Nc4 {[%clk 0:02:02]}  c6 {[%clk 0:02:45]} 16. Nb6 {[%clk 0:01:56]}  Be6 {[%clk 0:02:45]} 17. Qc2 {[%clk 0:01:53]}  Rd8 {[%clk 0:02:44]} 18. Bf5 {[%clk 0:01:47]}  Kf7 {[%clk 0:02:40]} 19. b3 {[%clk 0:01:43]}  Bxf5 {[%clk 0:02:25]} 20. exf5 {[%clk 0:01:42]}  Rhe8 {[%clk 0:02:19]} 21. Re1 {[%clk 0:01:39]}  Kg8 {[%clk 0:02:18]} 22. Nc4 {[%clk 0:01:34]}  Qc7 {[%clk 0:02:18]} 23. Be3 {[%clk 0:01:33]}  Nd5 {[%clk 0:02:16]} 24. Bd2 {[%clk 0:01:12]}  b5 {[%clk 0:02:07]} 25. Ne3 {[%clk 0:01:10]}  Nf4 {[%clk 0:02:05]} 26. Ng4 {[%clk 0:01:07]}  h5 {[%clk 0:01:54]} 27. Bxf4 {[%clk 0:00:58]}  exf4 {[%clk 0:01:47]} 28. f6 {[%clk 0:00:56]}  hxg4 {[%clk 0:01:47]} 29. fxg7 {[%clk 0:00:53]}  Qxg7 {[%clk 0:01:43]} 30. axb5 {[%clk 0:00:48]}  cxb5 {[%clk 0:01:44]} 31. Qf5 {[%clk 0:00:47]}  Rxe1+ {[%clk 0:01:36]} 32. Rxe1 {[%clk 0:00:45]}  b4 {[%clk 0:01:34]} 33. cxb4 {[%clk 0:00:43]}  axb4 {[%clk 0:01:35]} 34. Qe6+ {[%clk 0:00:41]}  Kh7 {[%clk 0:01:31]} 35. Qxg4 {[%clk 0:00:41]}  Rd6 {[%clk 0:01:30]} 36. h4 {[%clk 0:00:38]}  Rg6 {[%clk 0:01:14]} 37. Qf5 {[%clk 0:00:26]}  gxh4 {[%clk 0:00:52]} 38. Re6 {[%clk 0:00:24]}  Kh6 {[%clk 0:00:35]} 39. Qxf4+ {[%clk 0:00:23]}  Kh5 {[%clk 0:00:33]} 40. Re5+ {[%clk 0:00:18]}  Rg5 {[%clk 0:00:33]} 41. Rxg5+ {[%clk 0:00:18]}  Qxg5 {[%clk 0:00:34]} 42. Qxg5+ {[%clk 0:00:18]}  Kxg5 {[%clk 0:00:35]} 43. Kh2 {[%clk 0:00:18]}  Kg4 {[%clk 0:00:20]} 44. g3 {[%clk 0:00:11]}  hxg3+ {[%clk 0:00:07]} 45. fxg3 {[%clk 0:00:12]}  Kf3 {[%clk 0:00:07]} 46. Kh3 {[%clk 0:00:12]}  Ke4 {[%clk 0:00:07]} 47. g4 {[%clk 0:00:13]}  Kd4 {[%clk 0:00:05]} 48. g5 {[%clk 0:00:10]}  Kc3 {[%clk 0:00:03]} 49. g6 {[%clk 0:00:10]}  Kxb3 {[%clk 0:00:04]} 50. g7 {[%clk 0:00:11]}  Kc2 {[%clk 0:00:05]} 51. g8=Q {[%clk 0:00:12]}  b3 {[%clk 0:00:05]} 52. Qc4+ {[%clk 0:00:12]}  Kb2 {[%clk 0:00:05]} 53. Kg3 {[%clk 0:00:12]}  Ka1 {[%clk 0:00:06]} 54. Qc3+ {[%clk 0:00:11]}  b2 {[%clk 0:00:06]} 55. Qa3+ {[%clk 0:00:09]}  Kb1 {[%clk 0:00:06]} 56. Kf3 {[%clk 0:00:10]}  Kc2 {[%clk 0:00:07]} 57. Qa4+ {[%clk 0:00:10]}  Kc3 {[%clk 0:00:08]} 58. Qc6+ {[%clk 0:00:10]}  Kd2 {[%clk 0:00:08]} 59. Qd5+ {[%clk 0:00:10]}  Kc2 {[%clk 0:00:08]} 60. Qc4+ {[%clk 0:00:10]}  Kd2 {[%clk 0:00:09]} 61. Qd4+ {[%clk 0:00:10]}  Kc2 {[%clk 0:00:09]} 62. Qc4+ {[%clk 0:00:10]}  Kd2 {[%clk 0:00:10]} 63. Qb3 {[%clk 0:00:10]}  Kc1 {[%clk 0:00:10]} 64. Qc3+ {[%clk 0:00:10]}  Kb1 {[%clk 0:00:09]} 65. Ke2 {[%clk 0:00:10]}  Ka2 {[%clk 0:00:09]} 66. Qc4+ {[%clk 0:00:09]}  Ka3 {[%clk 0:00:09]} 67. Qc2 {[%clk 0:00:09]}  Ka2 {[%clk 0:00:09]} 68. Qa4+ {[%clk 0:00:09]}  Kb1 {[%clk 0:00:09]} 69. Kd3 {[%clk 0:00:09]}  Kc1 {[%clk 0:00:10]} 70. Qc2# {[%clk 0:00:09]} 1-0


[Site "https://www.chess.com"]

[Event "Titled Tuesday Blitz May 4 2021"]
[White "Perez, Maximiliano"]
[Black "Lauridsen, Jesper Morch"]
[WhiteFideId "117234"]
[BlackFideId "1401890"]
[WhiteElo "2368"]
[BlackElo "2280"]
[Result "0-1"]
[Round "05"]
[TimeControl "180+1"]
[Date "2021.05.04"]
[WhiteClock "0:00:01"]
[BlackClock "0:00:04"]

1. e4 {[%clk 0:03:00]}  e5 {[%clk 0:02:59]} 2. Nf3 {[%clk 0:03:00]}  Nf6 {[%clk 0:02:59]} 3. Nxe5 {[%clk 0:02:59]}  d6 {[%clk 0:03:00]} 4. Nf3 {[%clk 0:02:59]}  Nxe4 {[%clk 0:03:00]} 5. d4 {[%clk 0:02:56]}  d5 {[%clk 0:03:01]} 6. Bd3 {[%clk 0:02:55]}  Bd6 {[%clk 0:03:00]} 7. O-O {[%clk 0:02:55]}  O-O {[%clk 0:02:59]} 8. c4 {[%clk 0:02:55]}  c6 {[%clk 0:02:58]} 9. Nc3 {[%clk 0:02:55]}  Nxc3 {[%clk 0:02:57]} 10. bxc3 {[%clk 0:02:56]}  dxc4 {[%clk 0:02:58]} 11. Bxc4 {[%clk 0:02:57]}  Bf5 {[%clk 0:02:58]} 12. a4 {[%clk 0:02:51]}  Nd7 {[%clk 0:02:48]} 13. Re1 {[%clk 0:02:50]}  Qc7 {[%clk 0:02:44]} 14. Bg5 {[%clk 0:02:42]}  Rae8 {[%clk 0:02:37]} 15. Rxe8 {[%clk 0:02:20]}  Rxe8 {[%clk 0:02:36]} 16. Qb3 {[%clk 0:02:21]}  Nb6 {[%clk 0:02:19]} 17. Bf1 {[%clk 0:02:01]}  Be4 {[%clk 0:02:18]} 18. a5 {[%clk 0:01:56]}  Nd5 {[%clk 0:02:10]} 19. c4 {[%clk 0:01:39]}  Nf4 {[%clk 0:01:30]} 20. c5 {[%clk 0:01:17]}  Be7 {[%clk 0:01:15]} 21. Bc4 {[%clk 0:01:12]}  Bxf3 {[%clk 0:00:38]} 22. Bxf7+ {[%clk 0:00:47]}  Kf8 {[%clk 0:00:39]} 23. Bxf4 {[%clk 0:00:35]}  Qxf4 {[%clk 0:00:32]} 24. Bxe8 {[%clk 0:00:31]}  Bd5 {[%clk 0:00:32]} 25. Qxb7 {[%clk 0:00:30]}  Qg4 {[%clk 0:00:20]} 26. f3 {[%clk 0:00:27]}  Qxd4+ {[%clk 0:00:17]} 27. Kf1 {[%clk 0:00:22]}  Bc4+ {[%clk 0:00:14]} 28. Ke1 {[%clk 0:00:21]}  Qxa1+ {[%clk 0:00:12]} 29. Kf2 {[%clk 0:00:22]}  Bxc5+ {[%clk 0:00:12]} 30. Kg3 {[%clk 0:00:20]}  Qe5+ {[%clk 0:00:11]} 31. Kh3 {[%clk 0:00:18]}  Be6+ {[%clk 0:00:11]} 32. g4 {[%clk 0:00:18]}  Kxe8 {[%clk 0:00:10]} 33. Qxc6+ {[%clk 0:00:18]}  Kf7 {[%clk 0:00:09]} 34. Qb7+ {[%clk 0:00:15]}  Kg6 {[%clk 0:00:09]} 35. Qb1+ {[%clk 0:00:15]}  Kf6 {[%clk 0:00:08]} 36. Qc1 {[%clk 0:00:13]}  Bd6 {[%clk 0:00:07]} 37. Qd2 {[%clk 0:00:12]}  g5 {[%clk 0:00:06]} 38. Qc2 {[%clk 0:00:11]}  Bd5 {[%clk 0:00:05]} 39. f4 {[%clk 0:00:04]}  Qxf4 {[%clk 0:00:05]} 40. Qc3+ {[%clk 0:00:02]}  Qe5 {[%clk 0:00:04]} 41. Qd2 {[%clk 0:00:01]}  Qxh2+ {[%clk 0:00:04]} 0-1


[Site "https://www.chess.com"]

[Event "Titled Tuesday Blitz May 4 2021"]
[White "Perske, Thore"]
[Black "Sirosh, Ilja"]
[WhiteFideId "12902195"]
[BlackFideId "4500458"]
[WhiteElo "2315"]
[BlackElo "2241"]
[Result "0-1"]
[Round "05"]
[TimeControl "180+1"]
[Date "2021.05.04"]
[WhiteClock "0:00:04"]
[BlackClock "0:00:27"]

1. e4 {[%clk 0:02:56]}  c5 {[%clk 0:02:59]} 2. Nf3 {[%clk 0:02:56]}  d6 {[%clk 0:02:59]} 3. g3 {[%clk 0:02:56]}  Nc6 {[%clk 0:02:51]} 4. Bg2 {[%clk 0:02:56]}  Nf6 {[%clk 0:02:42]} 5. d3 {[%clk 0:02:55]}  g6 {[%clk 0:02:36]} 6. O-O {[%clk 0:02:53]}  Bg7 {[%clk 0:02:36]} 7. Nc3 {[%clk 0:02:54]}  O-O {[%clk 0:02:36]} 8. h3 {[%clk 0:02:54]}  Nd7 {[%clk 0:02:34]} 9. Be3 {[%clk 0:02:52]}  Nd4 {[%clk 0:02:33]} 10. Nh4 {[%clk 0:02:49]}  Rb8 {[%clk 0:02:26]} 11. a4 {[%clk 0:02:49]}  a6 {[%clk 0:02:21]} 12. Qd2 {[%clk 0:02:49]}  b5 {[%clk 0:02:10]} 13. axb5 {[%clk 0:02:50]}  axb5 {[%clk 0:02:09]} 14. f4 {[%clk 0:02:50]}  b4 {[%clk 0:02:09]} 15. Nd1 {[%clk 0:02:49]}  Bb7 {[%clk 0:01:57]} 16. Rf2 {[%clk 0:02:42]}  f5 {[%clk 0:01:51]} 17. exf5 {[%clk 0:02:38]}  Bxg2 {[%clk 0:01:49]} 18. Rxg2 {[%clk 0:02:32]}  gxf5 {[%clk 0:01:25]} 19. g4 {[%clk 0:02:24]}  e5 {[%clk 0:01:18]} 20. g5 {[%clk 0:02:12]}  exf4 {[%clk 0:01:12]} 21. Bxf4 {[%clk 0:02:13]}  Ne5 {[%clk 0:01:12]} 22. Rg3 {[%clk 0:01:58]}  Ng6 {[%clk 0:01:07]} 23. Nxg6 {[%clk 0:01:54]}  hxg6 {[%clk 0:01:08]} 24. Ne3 {[%clk 0:01:45]}  Ra8 {[%clk 0:01:04]} 25. Re1 {[%clk 0:01:34]}  Ra2 {[%clk 0:01:02]} 26. Nd1 {[%clk 0:01:11]}  Re8 {[%clk 0:00:47]} 27. Rge3 {[%clk 0:01:03]}  Rxe3 {[%clk 0:00:39]} 28. Rxe3 {[%clk 0:01:04]}  Qa8 {[%clk 0:00:36]} 29. Kf2 {[%clk 0:00:55]}  Qh1 {[%clk 0:00:34]} 30. Bxd6 {[%clk 0:00:20]}  Ra1 {[%clk 0:00:35]} 31. Re8+ {[%clk 0:00:19]}  Kh7 {[%clk 0:00:33]} 32. Re1 {[%clk 0:00:13]}  Qxh3 {[%clk 0:00:32]} 33. c3 {[%clk 0:00:06]}  Nf3 {[%clk 0:00:32]} 34. Qf4 {[%clk 0:00:03]}  Nxe1 {[%clk 0:00:29]} 35. Kxe1 {[%clk 0:00:04]}  Qxd3 {[%clk 0:00:29]} 36. Be5 {[%clk 0:00:04]}  Rxd1+ {[%clk 0:00:27]} 0-1


[Site "https://www.chess.com"]

[Event "Titled Tuesday Blitz May 4 2021"]
[White "Pile, Richard"]
[Black "Visakh N R"]
[WhiteFideId "624110"]
[BlackFideId "25012223"]
[WhiteElo "2376"]
[BlackElo "2428"]
[Result "0-1"]
[Round "05"]
[TimeControl "180+1"]
[Date "2021.05.04"]
[WhiteClock "0:00:10"]
[BlackClock "0:00:16"]

1. e4 {[%clk 0:03:00]}  c5 {[%clk 0:02:59]} 2. Nf3 {[%clk 0:03:00]}  Nc6 {[%clk 0:02:59]} 3. Bb5 {[%clk 0:03:00]}  d6 {[%clk 0:02:49]} 4. c3 {[%clk 0:02:55]}  Bd7 {[%clk 0:02:18]} 5. d4 {[%clk 0:02:54]}  a6 {[%clk 0:01:51]} 6. Bxc6 {[%clk 0:02:49]}  Bxc6 {[%clk 0:01:50]} 7. O-O {[%clk 0:02:35]}  Bxe4 {[%clk 0:01:16]} 8. Re1 {[%clk 0:02:31]}  Bd5 {[%clk 0:01:01]} 9. Bg5 {[%clk 0:02:16]}  h6 {[%clk 0:00:56]} 10. Bh4 {[%clk 0:02:15]}  g5 {[%clk 0:00:52]} 11. Bg3 {[%clk 0:02:14]}  Nf6 {[%clk 0:00:52]} 12. Nbd2 {[%clk 0:01:39]}  Bg7 {[%clk 0:00:46]} 13. dxc5 {[%clk 0:01:22]}  dxc5 {[%clk 0:00:45]} 14. Ne5 {[%clk 0:01:20]}  O-O {[%clk 0:00:43]} 15. h4 {[%clk 0:01:21]}  Be6 {[%clk 0:00:32]} 16. hxg5 {[%clk 0:01:19]}  hxg5 {[%clk 0:00:32]} 17. Qc2 {[%clk 0:01:13]}  Nh5 {[%clk 0:00:30]} 18. Ndf3 {[%clk 0:01:07]}  Nxg3 {[%clk 0:00:29]} 19. fxg3 {[%clk 0:01:04]}  Bf6 {[%clk 0:00:26]} 20. Rad1 {[%clk 0:00:38]}  Qc7 {[%clk 0:00:25]} 21. Qc1 {[%clk 0:00:24]}  g4 {[%clk 0:00:21]} 22. Ng5 {[%clk 0:00:12]}  Bxe5 {[%clk 0:00:18]} 23. Nxe6 {[%clk 0:00:11]}  fxe6 {[%clk 0:00:18]} 24. Rd7 {[%clk 0:00:10]}  Qxd7 {[%clk 0:00:16]} 25. Rxe5 {[%clk 0:00:10]}  Rf5 {[%clk 0:00:16]} 0-1


[Site "https://www.chess.com"]

[Event "Titled Tuesday Blitz May 4 2021"]
[White "Pinto, Daniel"]
[Black "Ceres, Dragos"]
[WhiteFideId "3303144"]
[BlackFideId "13905864"]
[WhiteElo "1936"]
[BlackElo "2118"]
[Result "1-0"]
[Round "05"]
[TimeControl "180+1"]
[Date "2021.05.04"]
[WhiteClock "0:00:04"]
[BlackClock "0:00:27"]

1. e4 {[%clk 0:02:54]}  e5 {[%clk 0:02:58]} 2. Nf3 {[%clk 0:02:53]}  Nc6 {[%clk 0:02:52]} 3. d4 {[%clk 0:02:50]}  exd4 {[%clk 0:02:53]} 4. Nxd4 {[%clk 0:02:50]}  Nf6 {[%clk 0:02:54]} 5. Nxc6 {[%clk 0:02:49]}  bxc6 {[%clk 0:02:54]} 6. e5 {[%clk 0:02:50]}  Qe7 {[%clk 0:02:55]} 7. Qe2 {[%clk 0:02:50]}  Nd5 {[%clk 0:02:55]} 8. c4 {[%clk 0:02:49]}  Ba6 {[%clk 0:02:54]} 9. Nd2 {[%clk 0:02:47]}  g6 {[%clk 0:02:53]} 10. Nf3 {[%clk 0:02:41]}  Nb6 {[%clk 0:02:43]} 11. b3 {[%clk 0:02:31]}  Bg7 {[%clk 0:02:43]} 12. Bg5 {[%clk 0:02:23]}  Qe6 {[%clk 0:02:15]} 13. O-O-O {[%clk 0:02:16]}  O-O {[%clk 0:02:06]} 14. Bf4 {[%clk 0:02:02]}  Qe7 {[%clk 0:01:58]} 15. Qd2 {[%clk 0:01:49]}  Qa3+ {[%clk 0:01:46]} 16. Qb2 {[%clk 0:01:46]}  Qxb2+ {[%clk 0:01:43]} 17. Kxb2 {[%clk 0:01:45]}  d5 {[%clk 0:01:44]} 18. c5 {[%clk 0:00:27]}  Bxf1 {[%clk 0:01:44]} 19. Rhxf1 {[%clk 0:00:27]}  Nd7 {[%clk 0:01:42]} 20. Rc1 {[%clk 0:00:26]}  h6 {[%clk 0:01:27]} 21. h4 {[%clk 0:00:24]}  Rfe8 {[%clk 0:01:18]} 22. Rfe1 {[%clk 0:00:24]}  Bf8 {[%clk 0:01:16]} 23. Nd4 {[%clk 0:00:19]}  Nxc5 {[%clk 0:01:14]} 24. Re3 {[%clk 0:00:15]}  Ne6 {[%clk 0:01:13]} 25. Nxe6 {[%clk 0:00:11]}  Rxe6 {[%clk 0:01:14]} 26. g4 {[%clk 0:00:07]}  c5 {[%clk 0:01:12]} 27. Rd3 {[%clk 0:00:07]}  d4 {[%clk 0:01:12]} 28. Bg3 {[%clk 0:00:06]}  g5 {[%clk 0:01:12]} 29. hxg5 {[%clk 0:00:04]}  hxg5 {[%clk 0:01:13]} 30. f4 {[%clk 0:00:04]}  gxf4 {[%clk 0:01:14]} 31. Bxf4 {[%clk 0:00:05]}  Bg7 {[%clk 0:01:15]} 32. Rxc5 {[%clk 0:00:05]}  Rd8 {[%clk 0:01:15]} 33. Kc2 {[%clk 0:00:04]}  Rd7 {[%clk 0:01:15]} 34. a4 {[%clk 0:00:03]}  a6 {[%clk 0:01:13]} 35. g5 {[%clk 0:00:03]}  Kf8 {[%clk 0:01:11]} 36. b4 {[%clk 0:00:03]}  Ke7 {[%clk 0:01:11]} 37. Kb3 {[%clk 0:00:04]}  Ke8 {[%clk 0:01:08]} 38. a5 {[%clk 0:00:03]}  Bf8 {[%clk 0:01:07]} 39. Rc4 {[%clk 0:00:03]}  Bg7 {[%clk 0:01:02]} 40. Rc5 {[%clk 0:00:03]}  c6 {[%clk 0:00:58]} 41. Rc4 {[%clk 0:00:01]}  Bxe5 {[%clk 0:00:57]} 42. Bxe5 {[%clk 0:00:02]}  Rxe5 {[%clk 0:00:58]} 43. Rxc6 {[%clk 0:00:01]}  Re3 {[%clk 0:00:55]} 44. Kc4 {[%clk 0:00:02]}  Re1 {[%clk 0:00:47]} 45. Rxa6 {[%clk 0:00:02]}  Rc7+ {[%clk 0:00:47]} 46. Kxd4 {[%clk 0:00:02]}  Rd7+ {[%clk 0:00:45]} 47. Kc3 {[%clk 0:00:02]}  Rc7+ {[%clk 0:00:39]} 48. Kd2 {[%clk 0:00:02]}  Rec1 {[%clk 0:00:35]} 49. Rb6 {[%clk 0:00:03]}  R1c2+ {[%clk 0:00:33]} 50. Kd1 {[%clk 0:00:03]}  Rc1+ {[%clk 0:00:33]} 51. Ke2 {[%clk 0:00:03]}  Re7+ {[%clk 0:00:28]} 52. Re3 {[%clk 0:00:03]}  Rc2+ {[%clk 0:00:28]} 53. Kd3 {[%clk 0:00:04]}  Rc3+ {[%clk 0:00:27]} 54. Kxc3 {[%clk 0:00:04]}  Rxe3+ {[%clk 0:00:27]} 55. Kd4 {[%clk 0:00:04]}  Rh3 {[%clk 0:00:27]} 56. a6 {[%clk 0:00:04]} 1-0


[Site "https://www.chess.com"]

[Event "Titled Tuesday Blitz May 4 2021"]
[White "Podetti, Davide"]
[Black "Shimelkov, Vasiliy"]
[WhiteFideId "893617"]
[BlackFideId "13701630"]
[WhiteElo "2131"]
[BlackElo "2073"]
[Result "0-1"]
[Round "05"]
[TimeControl "180+1"]
[Date "2021.05.04"]
[WhiteClock "0:00:53"]
[BlackClock "0:01:49"]

1. e4 {[%clk 0:02:56]}  c6 {[%clk 0:02:59]} 2. d4 {[%clk 0:02:52]}  d5 {[%clk 0:02:59]} 3. exd5 {[%clk 0:02:53]}  cxd5 {[%clk 0:02:58]} 4. Bd3 {[%clk 0:02:54]}  Nc6 {[%clk 0:02:58]} 5. c3 {[%clk 0:02:54]}  Nf6 {[%clk 0:02:56]} 6. Ne2 {[%clk 0:02:53]}  g6 {[%clk 0:02:54]} 7. O-O {[%clk 0:02:53]}  Bg7 {[%clk 0:02:55]} 8. Nd2 {[%clk 0:02:48]}  O-O {[%clk 0:02:53]} 9. Nf3 {[%clk 0:02:47]}  Bf5 {[%clk 0:02:51]} 10. Ng3 {[%clk 0:02:45]}  Bxd3 {[%clk 0:02:49]} 11. Qxd3 {[%clk 0:02:46]}  e6 {[%clk 0:02:48]} 12. Re1 {[%clk 0:02:43]}  Rc8 {[%clk 0:02:46]} 13. Bf4 {[%clk 0:02:41]}  a6 {[%clk 0:02:46]} 14. Ne5 {[%clk 0:02:34]}  b5 {[%clk 0:02:40]} 15. Bg5 {[%clk 0:02:14]}  Qc7 {[%clk 0:02:31]} 16. h4 {[%clk 0:02:06]}  Nxe5 {[%clk 0:02:28]} 17. dxe5 {[%clk 0:01:41]}  Nd7 {[%clk 0:02:29]} 18. Bf4 {[%clk 0:01:29]}  Bxe5 {[%clk 0:02:22]} 19. Bxe5 {[%clk 0:01:26]}  Nxe5 {[%clk 0:02:23]} 20. Qd4 {[%clk 0:01:21]}  Nc6 {[%clk 0:02:23]} 21. Qg4 {[%clk 0:01:20]}  f5 {[%clk 0:02:20]} 22. Qf3 {[%clk 0:01:18]}  Rfe8 {[%clk 0:02:15]} 23. h5 {[%clk 0:01:17]}  Ne5 {[%clk 0:02:12]} 24. Qe2 {[%clk 0:01:04]}  Nc4 {[%clk 0:02:10]} 25. hxg6 {[%clk 0:01:04]}  hxg6 {[%clk 0:02:09]} 26. Rad1 {[%clk 0:01:04]}  Kf7 {[%clk 0:02:03]} 27. Nf1 {[%clk 0:01:04]}  Qf4 {[%clk 0:01:58]} 28. Nh2 {[%clk 0:01:01]}  Rcd8 {[%clk 0:01:54]} 29. Nf3 {[%clk 0:00:59]}  e5 {[%clk 0:01:51]} 30. b3 {[%clk 0:00:53]}  e4 {[%clk 0:01:49]} 0-1


[Site "https://www.chess.com"]